fUSD/lending_fUSD_20251225
["ID","MTS","AMOUNT","RATE_DAILY","PERIOD"]
[399810973,1766692232210,-500.0,0.00012448,2]
[399810974,1766692232221,-195.0,0.00012448,2]
[399810975,1766692232232,-195.0,0.00012448,2]
[399810976,1766692232242,-252.0,0.00012448,2]
[399810977,1766692232252,-300.0,0.00012657,2]
[399810978,1766692232262,-1200.0,0.00012657,2]
[399810979,1766692232273,-3700.74983827,0.00012658,2]
[399810980,1766692232284,-1446.7295,0.00012658,2]
[399810981,1766692232308,-8785.31140466,0.00012658,2]
[399810982,1766692232320,-21541.47377482,0.00012658,2]
[399810983,1766692232330,-1038.44491549,0.00012658,2]
[399810984,1766692232339,-1481.53409548,0.00012658,2]
[399810985,1766692232349,-28426.19807526,0.0001266,2]
[399810986,1766692232425,-95251.06388006,0.0001266,2]
[399811024,1766692239085,-251.00000008,0.0001266,2]
[399811025,1766692239258,-665733.08965144,0.0001266,2]
[399811032,1766692240329,-500.0,0.00012657,2]
[399811033,1766692240340,-502.13274033,0.00012657,2]
[399811034,1766692240350,-500.0,0.00012657,2]
[399811035,1766692240361,-608.12138438,0.00012657,2]
[399811036,1766692240372,-500.0,0.00012657,2]
[399811037,1766692240382,-424.17811138,0.00012657,2]
[399811038,1766692240391,-3224.35131781,0.0001266,2]
[399811039,1766692240403,-262.37689978,0.0001266,2]
[399811040,1766692240435,-857.81402166,0.0001266,2]
[399811041,1766692240590,-205994.10615391,0.0001266,2]
[399811042,1766692240601,-1200.0,0.00012758,2]
[399811043,1766692240611,-1000.0,0.00012759,2]
[399811044,1766692240622,-2517.778,0.00012759,2]
[399811045,1766692240632,-160.656,0.00012759,2]
[399811046,1766692240643,-227.06,0.00012759,2]
[399811047,1766692240653,-304.31974472,0.0001276,2]
[399811048,1766692240663,-12698.9595299,0.0001276,2]
[399811049,1766692240673,-24709.335,0.0001276,2]
[399811050,1766692240683,-2500.0,0.0001276,2]
[399811051,1766692240693,-500.0,0.00012852,2]
[399811052,1766692240704,-200.0,0.00012852,2]
[399811053,1766692240714,-207.4,0.00012852,2]
[399811054,1766692240725,-200.0,0.00012852,2]
[399811055,1766692240735,-151.0,0.00012852,2]
[399811056,1766692240745,-151.0,0.00012852,2]
[399811057,1766692240755,-151.0,0.00012852,2]
[399811058,1766692240766,-151.0,0.00012852,2]
[399811059,1766692240776,-151.0,0.00012852,2]
[399811060,1766692240787,-151.0,0.00012852,2]
[399811061,1766692240798,-151.0,0.00012852,2]
[399811062,1766692240809,-151.0,0.00012852,2]
[399811063,1766692240819,-151.0,0.00012852,2]
[399811064,1766692240829,-151.0,0.00012852,2]
[399811065,1766692240839,-151.0,0.00012852,2]
[399811066,1766692240850,-150.0,0.00012859,2]
[399811067,1766692240860,-33190.7788,0.0001286,2]
[399811068,1766692240871,-1000.0,0.0001286,2]
[399811070,1766692240882,-9999.99,0.00012893,2]
[399811071,1766692240892,-150.99,0.00012893,2]
[399811072,1766692240903,-150.0,0.00012897,2]
[399811073,1766692240913,-227.06,0.00013033,2]
[399811074,1766692240924,-35474.26451771,0.00013129,2]
[399811075,1766692240934,-12698.95952985,0.0001322,2]
[399811076,1766692240945,-1481.53409545,0.00013264,2]
[399811077,1766692240955,-227.07,0.00013307,2]
[399811078,1766692240965,-500.0,0.000134,2]
[399811079,1766692240976,-200.0,0.000134,2]
[399811080,1766692240987,-200.0,0.000134,2]
[399811081,1766692240997,-150.0,0.00013419,2]
[399811082,1766692241008,-150.0,0.00013419,2]
[399811083,1766692241020,-196.78575381,0.00013419,2]
[399811084,1766692241031,-153.11613946,0.00013419,2]
[399811085,1766692241041,-500.0,0.00013419,2]
[399811086,1766692241051,-150.0,0.00013419,2]
[399811087,1766692241063,-182.19324559,0.00013419,2]
[399811088,1766692241072,-150.0,0.00013419,2]
[399811089,1766692241083,-150.0,0.00013419,2]
[399811090,1766692241093,-150.0,0.00013419,2]
[399811091,1766692241105,-150.0,0.00013419,2]
[399811092,1766692241114,-500.0,0.00013446,2]
[399811093,1766692241124,-150.0,0.00013446,2]
[399811094,1766692241134,-150.0,0.00013446,2]
[399811095,1766692241144,-150.0,0.00013446,2]
[399811096,1766692241154,-150.0,0.00013446,2]
[399811097,1766692241164,-150.0,0.00013446,2]
[399811098,1766692241174,-304.31974468,0.0001345,2]
[399811099,1766692241184,-500.0,0.00013474,2]
[399811100,1766692241194,-150.0,0.00013474,2]
[399811101,1766692241204,-200.0,0.00013474,2]
[399811102,1766692241214,-193.07365104,0.00013474,2]
[399811103,1766692241224,-150.0,0.00013474,2]
[399811104,1766692241234,-150.0,0.00013474,2]
[399811105,1766692241244,-500.0,0.00013501,2]
[399811106,1766692241254,-150.0,0.00013501,2]
[399811107,1766692241264,-150.0,0.00013501,2]
[399811108,1766692241274,-150.0,0.00013501,2]
[399811109,1766692241284,-500.0,0.00013529,2]
[399811110,1766692241294,-150.0,0.00013529,2]
[399811111,1766692241304,-159.25903357,0.00013529,2]
[399811112,1766692241314,-500.0,0.00013556,2]
[399811113,1766692241324,-239.69349788,0.00013556,2]
[399811114,1766692241334,-500.0,0.00013583,2]
[399811115,1766692241344,-1747.74882944,0.00013591,2]
[399811116,1766692241354,-35474.26451771,0.00013601,2]
[399811117,1766692241364,-500.0,0.00013611,2]
[399811118,1766692241375,-500.0,0.00013638,2]
[399811119,1766692241385,-500.0,0.00013666,2]
[399811120,1766692241395,-12698.95952985,0.0001368,2]
[399811121,1766692241405,-240.69967108,0.00013693,2]
[399811122,1766692241415,-195.0,0.00013693,2]
[399811123,1766692241425,-250.0,0.00013693,2]
[399811124,1766692241435,-250.0,0.00013693,2]
[399811125,1766692241445,-195.0,0.00013693,2]
[399811126,1766692241456,-250.0,0.00013693,2]
[399811127,1766692241467,-195.0,0.00013693,2]
[399811128,1766692241477,-500.0,0.00013693,2]
[399811129,1766692241487,-151.0,0.00013695,2]
[399811130,1766692241498,-500.0,0.00013698,2]
[399811131,1766692241508,-500.0,0.00013698,2]
[399811132,1766692241518,-500.0,0.00013698,2]
[399811133,1766692241528,-500.0,0.00013698,2]
[399811134,1766692241538,-435.0169277,0.00013698,2]
[399811135,1766692241548,-500.0,0.00013698,2]
[399811136,1766692241557,-253.84521103,0.00013698,2]
[399811137,1766692241568,-500.0,0.00013698,2]
[399811138,1766692241578,-500.0,0.00013698,2]
[399811139,1766692241607,-500.0,0.00013698,2]
[399811140,1766692241617,-500.0,0.00013698,2]
[399811141,1766692241627,-244.00038138,0.00013698,2]
[399811142,1766692241637,-500.0,0.00013698,2]
[399811143,1766692241648,-183.93452706,0.00013698,2]
[399811144,1766692241658,-500.0,0.00013698,2]
[399811145,1766692241669,-500.0,0.00013698,2]
[399811146,1766692241679,-500.0,0.00013698,2]
[399811147,1766692241689,-500.0,0.00013698,2]
[399811148,1766692241699,-646.48024776,0.00013698,2]
[399811149,1766692241709,-500.0,0.00013698,2]
[399811150,1766692241719,-534.14774107,0.00013698,2]
[399811151,1766692241729,-1338.68,0.00013698,2]
[399811152,1766692241740,-1338.68,0.00013698,2]
[399811153,1766692241751,-1338.68,0.00013698,2]
[399811154,1766692241760,-1338.68,0.00013698,2]
[399811155,1766692241770,-500.0,0.00013698,2]
[399811156,1766692241780,-321.45865313,0.00013698,2]
[399811157,1766692241790,-1000.0,0.00013699,2]
[399811158,1766692241801,-177.52316721,0.00013699,2]
[399811159,1766692241811,-313.38,0.00013785,2]
[399811160,1766692241822,-1500.0,0.00013847,2]
[399811161,1766692241832,-695.0,0.00013866,2]
[399811162,1766692241842,-218.79470444,0.00013866,2]
[399811163,1766692241853,-500.0,0.00013866,2]
[399811164,1766692241863,-1481.53409545,0.0001387,2]
[399811165,1766692241873,-256.0,0.00013885,2]
[399811166,1766692241883,-695.0,0.00013893,2]
[399811167,1766692241893,-500.0,0.00013893,2]
[399811168,1766692241903,-695.0,0.00013921,2]
[399811169,1766692241913,-633.0,0.00013921,2]
[399811170,1766692241922,-1680.0,0.00013923,2]
[399811171,1766692241932,-695.0,0.00013948,2]
[399811172,1766692241942,-500.0,0.00013948,2]
[399811173,1766692241951,-200.0,0.00013948,2]
[399811174,1766692241962,-200.0,0.00013948,2]
[399811175,1766692241971,-695.0,0.00013976,2]
[399811176,1766692241981,-790.0,0.00013995,2]
[399811177,1766692241991,-695.0,0.00014003,2]
[399811178,1766692242001,-695.0,0.0001403,2]
[399811179,1766692242011,-695.0,0.00014058,2]
[399811180,1766692242024,-35474.26451771,0.00014072,2]
[399811181,1766692242035,-948.01,0.00014085,2]
[399811182,1766692242045,-695.0,0.00014085,2]
[399811183,1766692242054,-200.0,0.0001409,2]
[399811184,1766692242064,-695.0,0.00014113,2]
[399811185,1766692242075,-695.0,0.0001414,2]
[399811186,1766692242085,-304.31974468,0.0001414,2]
[399811187,1766692242096,-12698.95952985,0.0001414,2]
[399811188,1766692242106,-695.0,0.00014167,2]
[399811189,1766692242116,-695.0,0.00014195,2]
[399811190,1766692242126,-1000.0,0.00014203,2]
[399811191,1766692242136,-695.0,0.00014222,2]
[399811192,1766692242146,-11443.58,0.00014248,2]
[399811193,1766692242157,-695.0,0.0001425,2]
[399811194,1766692242167,-695.0,0.00014277,2]
[399811195,1766692242178,-500.0,0.00014301,2]
[399811196,1766692242188,-695.0,0.00014304,2]
[399811197,1766692242198,-695.0,0.00014332,2]
[399811198,1766692242208,-1038.44491548,0.00014354,2]
[399811199,1766692242217,-166.66,0.00014357,2]
[399811200,1766692242227,-695.0,0.00014359,2]
[399811201,1766692242237,-695.0,0.00014387,2]
[399811202,1766692242247,-695.0,0.00014414,2]
[399811203,1766692242257,-695.0,0.00014441,2]
[399811204,1766692242267,-695.0,0.00014469,2]
[399811205,1766692242277,-1481.53409545,0.00014476,2]
[399811206,1766692242287,-700.18181479,0.00014496,2]
[399811207,1766692242297,-500.0,0.00014496,2]
[399811208,1766692242307,-307.97721752,0.00014496,2]
[399811209,1766692242317,-35474.26451771,0.00014543,2]
[399811210,1766692242327,-12698.95952985,0.000146,2]
[399811211,1766692242336,-166.66,0.0001466,2]
[399811212,1766692242347,-304.31974468,0.0001483,2]
[399811213,1766692242357,-1000.0,0.00014879,2]
[399811214,1766692242368,-166.66,0.00014962,2]
[399811215,1766692242378,-211.91242435,0.0001499,2]
[399811216,1766692242389,-186.75819186,0.0001499,2]
[399811217,1766692242399,-150.0,0.0001499,2]
[399811218,1766692242409,-218.11870161,0.0001499,2]
[399811219,1766692242420,-150.0,0.0001499,2]
[399811220,1766692242430,-150.0,0.0001499,2]
[399811221,1766692242440,-500.0,0.0001499,2]
[399811222,1766692242450,-35474.26451771,0.00015015,2]
[399811223,1766692242460,-150.0,0.00015017,2]
[399811224,1766692242469,-150.0,0.00015017,2]
[399811225,1766692242479,-150.0,0.00015017,2]
[399811226,1766692242489,-573.80704094,0.00015017,2]
[399811227,1766692242498,-200.0,0.00015045,2]
[399811228,1766692242508,-150.0,0.00015045,2]
[399811229,1766692242519,-150.0,0.00015045,2]
[399811230,1766692242529,-12698.95952985,0.0001506,2]
[399811231,1766692242540,-150.0,0.00015068,2]
[399811232,1766692242550,-150.0,0.00015072,2]
[399811233,1766692242561,-255.12332887,0.00015072,2]
[399811234,1766692242571,-1481.53409545,0.00015082,2]
[399811235,1766692242581,-150.0,0.00015095,2]
[399811236,1766692242591,-150.0,0.000151,2]
[399811237,1766692242601,-151.0,0.00015108,2]
[399811238,1766692242611,-151.0,0.00015113,2]
[399811239,1766692242621,-999.0,0.00015113,3]
[399811240,1766692242631,-151.0,0.00015119,2]
[399811241,1766692242641,-151.0,0.00015119,2]
[399811242,1766692242651,-210.96312953,0.00015123,2]
[399811243,1766692242662,-175.36246307,0.00015127,2]
[399811244,1766692242672,-500.0,0.0001526,2]
[399811245,1766692242682,-166.66,0.00015264,2]
[399811246,1766692242696,-150.0,0.00015288,2]
[399811247,1766692242706,-150.0,0.00015288,2]
[399811248,1766692242716,-150.0,0.00015288,2]
[399811249,1766692242726,-150.0,0.00015288,2]
[399811250,1766692242739,-150.0,0.00015288,2]
[399811251,1766692242748,-150.0,0.00015288,2]
[399811252,1766692242758,-150.0,0.00015288,2]
[399811253,1766692242768,-217.62219692,0.00015288,2]
[399811254,1766692242778,-150.0,0.00015288,2]
[399811255,1766692242788,-150.0,0.00015288,2]
[399811256,1766692242798,-150.0,0.00015288,2]
[399811257,1766692242808,-150.0,0.00015288,2]
[399811258,1766692242817,-150.0,0.00015288,2]
[399811259,1766692242827,-150.0,0.00015288,2]
[399811260,1766692242838,-150.0,0.00015308,2]
[399811261,1766692242848,-2351.0,0.00015315,2]
[399811262,1766692242857,-150.0,0.00015316,2]
[399811263,1766692242868,-150.0,0.00015319,2]
[399811264,1766692242878,-150.0,0.00015328,2]
[399811265,1766692242887,-150.0,0.00015329,2]
[399811266,1766692242898,-150.0,0.00015331,2]
[399811267,1766692242909,-150.0,0.00015341,2]
[399811268,1766692242919,-150.0,0.00015343,2]
[399811269,1766692242930,-150.0,0.00015349,2]
[399811270,1766692242941,-150.0,0.00015349,2]
[399811271,1766692242951,-309.46072033,0.00015354,2]
[399811272,1766692242961,-150.0,0.00015369,2]
[399811273,1766692242971,-150.0,0.0001537,2]
[399811274,1766692242981,-150.0,0.00015371,2]
[399811275,1766692242991,-150.0,0.00015375,2]
[399811276,1766692243001,-500.0,0.0001538,2]
[399811277,1766692243011,-150.0,0.0001538,2]
[399811278,1766692243024,-150.0,0.0001539,2]
[399811280,1766692243034,-150.0,0.00015394,2]
[399811281,1766692243044,-150.0,0.00015394,2]
[399811282,1766692243054,-150.0,0.00015399,2]
[399811283,1766692243064,-261.15,0.00015409,2]
[399811284,1766692243074,-150.0,0.00015409,2]
[399811285,1766692243083,-150.0,0.0001541,2]
[399811286,1766692243093,-150.0,0.00015411,2]
[399811288,1766692243103,-150.0,0.00015418,2]
[399811290,1766692243113,-150.0,0.00015418,2]
[399811292,1766692243123,-150.0,0.00015427,2]
[399811294,1766692243132,-150.0,0.00015431,2]
[399811296,1766692243142,-150.0,0.00015442,2]
[399811298,1766692243152,-150.0,0.00015447,2]
[399811299,1766692243162,-150.0,0.00015449,2]
[399811300,1766692243172,-150.0,0.00015451,2]
[399811301,1766692243181,-150.0,0.00015455,2]
[399811302,1766692243437,-150.0,0.00015458,2]
[399811303,1766692243450,-150.0,0.00015462,2]
[399811304,1766692243464,-150.0,0.00015472,2]
[399811305,1766692243474,-150.0,0.00015473,2]
[399811306,1766692243484,-150.0,0.00015483,2]
[399811307,1766692243494,-35474.26451771,0.00015486,2]
[399811308,1766692243504,-150.0,0.0001549,2]
[399811309,1766692243515,-150.0,0.00015492,2]
[399811310,1766692243526,-150.0,0.000155,2]
[399811311,1766692243535,-150.0,0.000155,2]
[399811312,1766692243545,-150.0,0.000155,2]
[399811313,1766692243555,-150.0,0.00015504,2]
[399811314,1766692243565,-150.0,0.00015505,2]
[399811315,1766692243575,-150.0,0.0001551,2]
[399811316,1766692243585,-150.0,0.00015513,2]
[399811317,1766692243595,-304.31974468,0.0001552,2]
[399811318,1766692243605,-12698.95952985,0.0001552,2]
[399811319,1766692243616,-150.0,0.0001553,2]
[399811320,1766692243625,-150.0,0.00015533,2]
[399811321,1766692243635,-150.0,0.00015535,2]
[399811322,1766692243645,-150.0,0.00015538,2]
[399811323,1766692243655,-150.0,0.00015549,2]
[399811324,1766692243664,-150.0,0.00015549,2]
[399811325,1766692243674,-150.0,0.00015553,2]
[399811327,1766692243685,-150.0,0.00015554,2]
[399811328,1766692243694,-3240.0,0.00015558,2]
[399811329,1766692243705,-150.0,0.00015566,2]
[399811330,1766692243716,-150.0,0.00015566,2]
[399811331,1766692243726,-166.66,0.00015567,2]
[399811332,1766692243736,-150.0,0.00015571,2]
[399811333,1766692243747,-150.0,0.00015574,2]
[399811334,1766692243756,-215.0738,0.00015591,2]
[399811335,1766692243766,-150.0,0.00015593,2]
[399811336,1766692243776,-150.0,0.00015594,2]
[399811337,1766692243786,-150.0,0.00015595,2]
[399811338,1766692243796,-150.0,0.00015597,2]
[399811339,1766692243807,-150.0,0.00015606,2]
[399811340,1766692243818,-150.0,0.00015606,2]
[399811341,1766692243827,-150.0,0.00015611,2]
[399811342,1766692243837,-150.0,0.00015615,2]
[399811343,1766692243849,-150.0,0.00015622,2]
[399811344,1766692243859,-150.0,0.00015627,2]
[399811345,1766692243869,-150.0,0.00015627,2]
[399811346,1766692243879,-150.0,0.00015627,2]
[399811347,1766692243890,-150.0,0.00015636,2]
[399811349,1766692243900,-150.0,0.00015636,2]
[399811350,1766692243910,-150.0,0.0001565,2]
[399811351,1766692243921,-150.0,0.00015652,2]
[399811352,1766692243931,-150.0,0.00015656,2]
[399811353,1766692243941,-150.0,0.00015658,2]
[399811355,1766692243952,-150.0,0.00015659,2]
[399811356,1766692243962,-150.0,0.00015677,2]
[399811358,1766692243972,-150.0,0.00015678,2]
[399811360,1766692243981,-236.57,0.00015678,2]
[399811361,1766692243991,-150.0,0.0001568,2]
[399811362,1766692244002,-150.0,0.0001568,2]
[399811363,1766692244012,-1481.53409545,0.00015688,2]
[399811364,1766692244024,-150.0,0.00015689,2]
[399811365,1766692244035,-150.0,0.00015692,2]
[399811366,1766692244044,-261.15,0.00015694,2]
[399811367,1766692244055,-150.0,0.00015697,2]
[399811368,1766692244064,-234.55,0.00015703,2]
[399811369,1766692244075,-236.57738109,0.00015703,2]
[399811370,1766692244084,-150.0,0.00015705,2]
[399811371,1766692244094,-150.0,0.00015712,2]
[399811372,1766692244104,-150.0,0.00015712,2]
[399811373,1766692244114,-150.0,0.00015712,2]
[399811374,1766692244124,-500.0,0.00015717,2]
[399811375,1766692244135,-150.0,0.00015717,2]
[399811376,1766692244145,-150.0,0.0001572,2]
[399811377,1766692244155,-150.0,0.00015723,2]
[399811378,1766692244164,-150.0,0.00015733,2]
[399811379,1766692244173,-150.0,0.00015733,2]
[399811380,1766692244183,-150.0,0.00015738,2]
[399811381,1766692244192,-150.0,0.00015751,2]
[399811382,1766692244202,-150.0,0.00015758,2]
[399811383,1766692244211,-150.0,0.00015761,2]
[399811384,1766692244222,-150.0,0.00015765,2]
[399811385,1766692244232,-150.0,0.00015767,2]
[399811386,1766692244241,-150.0,0.00015773,2]
[399811387,1766692244251,-150.0,0.00015779,2]
[399811388,1766692244261,-150.0,0.00015782,2]
[399811389,1766692244272,-150.0,0.00015789,2]
[399811390,1766692244282,-150.0,0.00015797,2]
[399811391,1766692244291,-150.0,0.00015799,2]
[399811392,1766692244301,-150.0,0.0001581,2]
[399811393,1766692244311,-150.0,0.0001581,2]
[399811394,1766692244321,-150.0,0.00015813,2]
[399811395,1766692244331,-150.0,0.00015813,2]
[399811396,1766692244341,-150.0,0.00015817,2]
[399811397,1766692244351,-150.0,0.00015818,2]
[399811398,1766692244361,-150.0,0.00015818,2]
[399811399,1766692244370,-150.0,0.0001582,2]
[399811400,1766692244380,-150.0,0.0001584,2]
[399811401,1766692244390,-150.0,0.00015844,2]
[399811402,1766692244399,-150.0,0.00015845,2]
[399811403,1766692244409,-150.0,0.00015854,2]
[399811404,1766692244419,-150.0,0.00015854,2]
[399811405,1766692244429,-150.0,0.00015861,2]
[399811406,1766692244438,-500.0,0.00015862,2]
[399811407,1766692244448,-166.66,0.00015869,2]
[399811408,1766692244458,-150.0,0.00015872,2]
[399811409,1766692244467,-150.0,0.00015872,2]
[399811410,1766692244477,-150.0,0.00015874,2]
[399811411,1766692244487,-150.0,0.00015881,2]
[399811412,1766692244496,-150.0,0.00015894,2]
[399811413,1766692244506,-150.0,0.00015897,2]
[399811414,1766692244516,-150.0,0.000159,2]
[399811415,1766692244527,-150.0,0.00015902,2]
[399811416,1766692244536,-150.0,0.00015905,2]
[399811417,1766692244547,-150.0,0.00015922,2]
[399811418,1766692244556,-150.0,0.00015925,2]
[399811419,1766692244566,-150.0,0.00015925,2]
[399811420,1766692244576,-150.0,0.00015925,2]
[399811421,1766692244585,-150.0,0.00015928,2]
[399811422,1766692244595,-150.0,0.00015935,2]
[399811423,1766692244604,-150.0,0.00015936,2]
[399811424,1766692244614,-150.0,0.00015941,2]
[399811425,1766692244624,-150.0,0.00015941,2]
[399811426,1766692244633,-150.0,0.00015943,2]
[399811427,1766692244643,-150.0,0.00015956,2]
[399811428,1766692244654,-35474.26451771,0.00015957,2]
[399811429,1766692244664,-150.0,0.00015963,2]
[399811430,1766692244674,-150.0,0.00015967,2]
[399811431,1766692244688,-150.0,0.00015967,2]
[399811432,1766692244703,-150.0,0.00015967,2]
[399811433,1766692244712,-150.0,0.00015975,2]
[399811434,1766692244722,-150.0,0.00015978,2]
[399811435,1766692244732,-1000.0,0.00015979,2]
[399811436,1766692244742,-12698.95952985,0.0001598,2]
[399811437,1766692244751,-150.0,0.00015983,2]
[399811438,1766692244761,-150.0,0.00015984,2]
[399811439,1766692244770,-150.0,0.00015985,2]
[399811440,1766692244780,-150.0,0.00015998,2]
[399811441,1766692244790,-150.0,0.00016004,2]
[399811442,1766692244800,-150.0,0.00016012,2]
[399811443,1766692244810,-150.0,0.00016016,2]
[399811444,1766692244820,-208.92,0.00016018,2]
[399811445,1766692244831,-150.0,0.00016024,2]
[399811446,1766692244842,-150.0,0.00016028,2]
[399811447,1766692244852,-150.0,0.00016029,2]
[399811448,1766692244863,-150.0,0.00016031,2]
[399811449,1766692244873,-150.0,0.00016031,2]
[399811450,1766692244884,-150.0,0.0001604,2]
[399811451,1766692244893,-150.0,0.00016045,2]
[399811452,1766692244903,-1038.44491548,0.00016049,2]
[399811453,1766692244913,-150.0,0.00016056,2]
[399811454,1766692244923,-208.92,0.00016057,2]
[399811455,1766692244933,-150.0,0.0001606,2]
[399811456,1766692244943,-150.0,0.00016065,2]
[399811457,1766692244954,-150.0,0.00016067,2]
[399811458,1766692244964,-150.0,0.00016072,2]
[399811459,1766692244975,-150.0,0.00016072,2]
[399811460,1766692244985,-10000.0,0.00016083,2]
[399811461,1766692244995,-150.0,0.00016084,2]
[399811462,1766692245006,-150.0,0.00016086,2]
[399811463,1766692245018,-150.0,0.00016091,2]
[399811464,1766692245028,-150.0,0.00016095,2]
[399811465,1766692245038,-150.0,0.00016097,2]
[399811466,1766692245048,-150.0,0.00016106,2]
[399811467,1766692245058,-150.0,0.00016115,2]
[399811468,1766692245067,-150.0,0.00016122,2]
[399811469,1766692245077,-150.0,0.00016123,2]
[399811470,1766692245087,-150.0,0.00016127,2]
[399811471,1766692245097,-166.66,0.00016131,2]
[399811472,1766692245107,-150.0,0.00016137,2]
[399811473,1766692245117,-150.0,0.00016137,2]
[399811474,1766692245127,-150.0,0.00016137,2]
[399811475,1766692245138,-150.0,0.00016137,2]
[399811476,1766692245147,-150.0,0.00016137,2]
[399811477,1766692245158,-150.0,0.00016137,2]
[399811478,1766692245168,-150.0,0.00016147,2]
[399811479,1766692245179,-500.0,0.00016148,2]
[399811480,1766692245188,-1338.68,0.00016148,2]
[399811481,1766692245198,-322.6107,0.00016149,2]
[399811482,1766692245208,-1500.0,0.00016149,2]
[399811483,1766692245218,-250.0,0.00016149,2]
[399811484,1766692245227,-500.0,0.00016149,2]
[399811485,1766692245237,-1500.0,0.00016149,2]
[399811486,1766692245246,-250.0,0.00016149,2]
[399811487,1766692245256,-250.0,0.00016149,2]
[399811488,1766692245266,-500.0,0.00016149,2]
[399811489,1766692245276,-1500.0,0.00016149,2]
[399811490,1766692245287,-250.0,0.00016149,2]
[399811491,1766692245297,-250.0,0.00016149,2]
[399811492,1766692245307,-500.0,0.00016149,2]
[399811493,1766692245318,-1500.0,0.00016149,2]
[399811494,1766692245327,-250.0,0.00016149,2]
[399811495,1766692245338,-250.0,0.00016149,2]
[399811496,1766692245348,-500.0,0.00016149,2]
[399811497,1766692245357,-1500.0,0.00016149,2]
[399811498,1766692245367,-250.0,0.00016149,2]
[399811499,1766692245377,-250.0,0.00016149,2]
[399811500,1766692245387,-574.12855637,0.00016149,2]
[399811501,1766692245396,-1500.0,0.00016149,2]
[399811502,1766692245406,-500.0,0.00016149,2]
[399811503,1766692245416,-250.0,0.00016149,2]
[399811504,1766692245426,-250.0,0.00016149,2]
[399811505,1766692245435,-500.0,0.00016149,2]
[399811506,1766692245445,-1500.0,0.00016149,2]
[399811507,1766692245455,-250.0,0.00016149,2]
[399811508,1766692245464,-500.0,0.00016149,2]
[399811509,1766692245474,-1500.0,0.00016149,2]
[399811510,1766692245484,-250.0,0.00016149,2]
[399811511,1766692245493,-1500.0,0.00016149,2]
[399811512,1766692245504,-500.0,0.00016149,2]
[399811513,1766692245514,-250.0,0.00016149,2]
[399811514,1766692245523,-500.0,0.00016149,2]
[399811515,1766692245533,-1500.0,0.00016149,2]
[399811516,1766692245543,-500.0,0.00016149,2]
[399811517,1766692245552,-250.0,0.00016149,2]
[399811518,1766692245562,-3610.92924073,0.00016149,2]
[399811519,1766692245571,-500.0,0.00016149,2]
[399811520,1766692245580,-1500.0,0.00016149,2]
[399811521,1766692245590,-500.0,0.00016149,2]
[399811522,1766692245600,-250.0,0.00016149,2]
[399811523,1766692245610,-500.0,0.00016149,2]
[399811524,1766692245620,-500.0,0.00016149,2]
[399811525,1766692245629,-500.0,0.00016149,2]
[399811526,1766692245639,-500.0,0.00016149,2]
[399811527,1766692245649,-500.0,0.00016149,2]
[399811528,1766692245658,-500.0,0.00016149,2]